fUSD/lending_fUSD_20250812
["ID","MTS","AMOUNT","RATE_DAILY","PERIOD"]
[378713189,1754986237614,-10000.0,0.000395,6]
[378713190,1754986237624,-180.81,0.00039553,2]
[378713191,1754986237634,-5000.0,0.00039841,120]
[378713192,1754986237643,-666.0,0.00039841,3]
[378713193,1754986237652,-338.43,0.00039841,2]
[378713194,1754986237662,-1009.0,0.000399,7]
[378713195,1754986237671,-4146.0,0.00040006,2]
[378713196,1754986237680,-893.0,0.00040006,2]
[378713197,1754986237690,-200.0,0.00040376,2]
[378713198,1754986237699,-4482.9311,0.000404,2]
[378713199,1754986237710,-275.3046,0.000404,2]
[378713200,1754986237721,-230.6399,0.000404,2]
[378713201,1754986237731,-783.0,0.00040423,5]
[378713202,1754986237741,-150.0,0.00040481,2]
[378713203,1754986237750,-8121.03354141,0.000405,5]
[378713204,1754986237762,-7803.35251208,0.000405,5]
[378713205,1754986237774,-2110.0,0.000405,5]
[378713206,1754986237794,-463.32898485,0.000405,5]
[378713209,1754986237822,-527.40920073,0.0003906,3]
[378713360,1754986239501,-176.60801016,0.000335,2]
[378713362,1754986239511,-360.59079927,0.0003906,3]
[378713364,1754986239520,-1286.39119057,0.000405,5]
[378713376,1754986239635,-1273.216,0.000405,5]
[378713379,1754986239649,-2158.4752107,0.000405,5]
[378713381,1754986239661,-6784.20256039,0.000405,5]
[378713383,1754986239671,-397.64,0.000406,7]
[378713385,1754986239680,-150.0,0.00040701,2]
[378713387,1754986239690,-1000.0,0.000408,7]
[378713389,1754986239699,-184.06,0.00040871,2]
[378713391,1754986239709,-200.0,0.0004089,120]
[378713393,1754986239718,-2909.66839678,0.00040984,2]
[378713395,1754986239727,-153.57654823,0.00040984,120]
[378713397,1754986239738,-446.71174219,0.00040985,28]
[378713399,1754986239747,-176.2999675,0.00040993,31]
[378713401,1754986239756,-301.03769537,0.00040993,31]
[378713403,1754986239766,-14353.49500776,0.00040994,15]
[378713405,1754986239775,-5040.20285604,0.00040994,15]
[378713407,1754986239784,-163.31572953,0.00040995,2]
[378713409,1754986239794,-156.80509819,0.00040995,15]
[378713410,1754986239803,-162.27388251,0.00040995,15]
[378713412,1754986239813,-2376.25456704,0.00041,120]
[378713414,1754986239822,-150.0,0.00041,60]
[378713416,1754986239831,-9938.0,0.00041,60]
[378713418,1754986239841,-1064.45665352,0.00041,30]
[378713420,1754986239851,-500.0,0.00041084,120]
[378713422,1754986239861,-200.0,0.00041084,61]
[378713424,1754986239870,-207.4,0.00041084,61]
[378713426,1754986239880,-215.0738,0.00041084,61]
[378713428,1754986239890,-223.0315306,0.00041084,61]
[378713430,1754986239900,-231.28369723,0.00041084,61]
[378713432,1754986239910,-239.84119403,0.00041084,61]
[378713434,1754986239919,-248.71531821,0.00041084,61]
[378713436,1754986239929,-257.91778498,0.00041084,61]
[378713438,1754986239938,-267.46074303,0.00041084,61]
[378713440,1754986239947,-277.35679052,0.00041084,61]
[378713442,1754986239956,-287.61899177,0.00041084,61]
[378713444,1754986239965,-298.26089446,0.00041084,61]
[378713446,1754986239975,-309.29654756,0.00041084,61]
[378713448,1754986239984,-320.74051982,0.00041084,61]
[378713450,1754986240000,-332.60791905,0.00041084,61]
[378713452,1754986240018,-455.64018014,0.00041084,61]
[378713454,1754986240035,-150.0,0.00041084,60]
[378713456,1754986240044,-306.75231953,0.00041084,10]
[378713458,1754986240054,-72838.96845911,0.00041085,31]
[378713460,1754986240063,-3639.0164473,0.00041085,61]
[378713462,1754986240075,-200.0,0.00041085,7]
[378713464,1754986240085,-68502.81374589,0.00041085,3]
[378713466,1754986240096,-60096.82468578,0.00041085,3]
[378713759,1754986242845,-888.0,0.0003956,3]
[378713761,1754986242854,-2183.9697852,0.00040985,13]
[378713763,1754986242864,-96.4301448,0.00041,30]
[378713765,1754986242875,-1706.7999997,0.00041,30]
[378713767,1754986242886,-1032.0686296,0.00041,30]
[378713773,1754986242923,-315.695,0.00041,30]
[378714067,1754986245714,-152.26,0.00033014,2]
[378714069,1754986245724,-152.26,0.00034841,2]
[378714071,1754986245732,-152.26,0.00036667,2]
[378714073,1754986245742,-152.26,0.00038494,2]
[378714075,1754986245752,-150.0,0.000388,2]
[378714077,1754986245761,-888.0,0.0004006,3]
[378714079,1754986245771,-152.26,0.0004032,2]
[378714081,1754986245780,-352.64,0.000407,7]
[378714083,1754986245789,-2229.08868594,0.00041,30]
[378714085,1754986245801,-627.41498734,0.00041,30]
[378714087,1754986245810,-465.31223498,0.00041085,3]
[378714090,1754986245829,-432.81309839,0.00041085,3]
[378714092,1754986245840,-42547.3688466,0.00041085,3]
[378714467,1754986616947,161.36,0.00013699,2]
[378714489,1754987328335,517.05060927,0.0001,2]
[378714490,1754987328361,1726.05118295,0.0001,2]
[378714496,1754987404940,1000.0,0.00020899,3]
[378714497,1754987405013,1000.0,0.00018999,3]
[378714507,1754987431622,-160.36231303,0.00018899,2]
[378714508,1754987431631,-300.0,0.00018999,2]
[378714509,1754987431641,-210.72638676,0.00018999,2]
[378714510,1754987431650,-37180.47560973,0.00019,2]
[378714511,1754987431664,-5721.77593712,0.00019,2]
[378714512,1754987431679,-1351.97360709,0.00019,2]
[378714513,1754987431692,-1016.15674964,0.00019,2]
[378714514,1754987431731,-500.0,0.00019,2]
[378714515,1754987431743,-7950.10077324,0.00019,2]
[378714516,1754987431786,-87331.78431628,0.00019,2]
[378714517,1754987431841,-500.0,0.00019,2]
[378714518,1754987431897,-542.21724458,0.00019,2]
[378714519,1754987431908,-304.26002823,0.00019,2]
[378714520,1754987431952,-1800.0,0.00019,2]
[378714542,1754987437589,-160.36231303,0.000189,2]
[378714543,1754987437599,-351.30231537,0.00019,2]
[378714544,1754987437694,-489.54914957,0.00019,2]
[378714545,1754987437748,-5039.42475227,0.00019,2]
[378714743,1754987439692,-396.4423998,0.00019,2]
[378714744,1754987439746,-4292.73389182,0.00019,2]
[378714745,1754987439801,-42947.49856849,0.00019,2]
[378714746,1754987439857,-676.88168952,0.00019,2]
[378714986,1754987442774,-98.86614132,0.00019,2]
[378715105,1754987484103,1030.53580391,0.00019979,5]
[378715108,1754987522320,1000.0,0.000209,3]
[378715109,1754987522396,1000.0,0.0001949,3]
[378715110,1754987522530,1000.0,0.00020637,3]
[378715112,1754987610016,161.36,0.00013699,2]
[378715114,1754987642073,1000.0,0.000209,3]
[378715129,1754988561135,-5004.212122,0.00019,2]
[378715130,1754988623303,174.0,0.000214,3]
[378715139,1754988631903,-2680.65204916,0.00019,2]
[378715140,1754988631913,-728.075,0.00019,2]
[378715141,1754988631922,-212.17369859,0.00019969,2]
[378715142,1754988632057,-87.82630141,0.00019969,2]
[378715143,1754988632067,-363.12909346,0.0001997,2]
[378715144,1754988632121,-575.0,0.0001997,2]
[378715145,1754988632217,-1633.93201016,0.0001997,2]
[378715146,1754988632271,-2998.97995,0.0001997,2]
[378715147,1754988632282,-677.54851383,0.0001997,2]
[378715152,1754988636330,174.0,0.000215,3]
[378715156,1754988637712,-1345.53390888,0.0001997,2]
[378715158,1754988637765,-4334.33408582,0.0001997,2]
[378715159,1754988637819,-938.53550016,0.0001997,2]
[378715160,1754988637828,-176.10780092,0.00019973,2]
[378715161,1754988637840,-323.89219908,0.00019973,2]
[378715162,1754988637849,-18150.88645991,0.0001998,2]
[378715163,1754988637936,-542.46609112,0.0001998,2]
[378715164,1754988638031,-1010.43986575,0.0001998,2]
[378715165,1754988638042,-15002.13492529,0.0001998,2]
[378715203,1754988639865,-9909.93527748,0.0001998,2]
[378715204,1754988639876,-351.8794,0.0001998,2]
[378715205,1754988640075,-4548.06760809,0.0001998,2]
[378715209,1754988643094,-1000.0,0.0001998,2]
[378715210,1754988643169,-313.62008107,0.0001998,2]
[378715211,1754988643194,-2117.92236724,0.0001998,2]
[378715212,1754988643205,-872.26117996,0.0001998,2]
[378715221,1754988645765,-11772.0,0.0001998,2]
[378715222,1754988645816,-886.49603265,0.0001998,2]
[378715223,1754988645873,-361.61365464,0.0001998,2]
[378715224,1754988645884,-331.96507016,0.0001998,2]
[378715230,1754988657280,174.16,0.000215,3]
[378715235,1754988703849,161.36,0.00013699,2]
[378715242,1754988841986,1000.0,0.0002146,3]
[378715243,1754988842071,1000.0,0.00019744,3]
[378715370,1754989613136,-330.894007,0.00019465,2]
[378715372,1754989635412,161.36,0.00013699,2]
[378715402,1754989832064,-76.842793,0.00019465,2]
[378715403,1754989832074,-643.27717006,0.00019509,2]
[378715404,1754989832083,-1200.0,0.00019978,2]
[378715405,1754989832093,-300.0,0.00019978,2]
[378715406,1754989832110,-1002.95216056,0.00019979,2]
[378715407,1754989832121,-281.75994955,0.00019979,2]
[378715408,1754989832130,-174.08056842,0.00019979,2]
[378715409,1754989832140,-195.75149176,0.00019979,2]
[378715410,1754989832150,-1006.1619,0.00019979,2]
[378715411,1754989832159,-7022.50149888,0.0001998,2]
[378715412,1754989832171,-67992.69988102,0.0001998,2]
[378715413,1754989832180,-501.86954801,0.00020567,2]
[378715414,1754989832189,-300.0,0.00021411,2]
[378715415,1754989832198,-300.0,0.00021411,2]
[378715416,1754989832208,-313.69798108,0.000215,2]
[378715417,1754989832217,-500.0,0.000215,2]
[378715418,1754989832228,-500.0,0.000215,2]
[378715419,1754989832237,-500.0,0.000215,2]
[378715420,1754989832247,-500.0,0.000215,2]
[378715421,1754989832257,-250.0,0.00021874,2]
[378715422,1754989832266,-725.29152308,0.00022048,2]
[378715423,1754989832301,-274.70847692,0.00022048,2]
[378715424,1754989832310,-318.47952308,0.0002225,2]
[378715425,1754989832340,-185.52545476,0.0002225,2]
[378715426,1754989832349,-433.15037362,0.0002225,2]
[378715427,1754989832358,-1058.05416662,0.00022596,2]
[378715428,1754989832369,-441.94583338,0.00022596,2]
[378715429,1754989832378,-18828.17293908,0.00023144,2]
[378715430,1754989832389,-747.06253279,0.00023144,2]
[378715431,1754989832400,-1690.83748651,0.00023144,2]
[378715432,1754989832411,-15153.41127118,0.00023144,2]
[378715433,1754989832421,-15367.87091737,0.00023144,2]
[378715434,1754989832429,-1502.33164994,0.00023144,2]
[378715435,1754989832438,-503.0,0.00024219,2]
[378715436,1754989832448,-195.32,0.00024353,2]
[378715437,1754989832457,-5800.0,0.000245,2]
[378715438,1754989832466,-507.37678907,0.0002451,30]
[378715439,1754989832475,-195.32,0.00026083,2]
[378715440,1754989832484,-503.30165892,0.00027,30]
[378715441,1754989832493,-500.0,0.00027,30]
[378715442,1754989832503,-500.0,0.00027,30]
[378715444,1754989832512,-152.09746572,0.00027397,5]
[378715446,1754989832521,-195.32,0.00027813,2]
[378715448,1754989832530,-4928.51727571,0.00028718,2]
[378715450,1754989832542,-9386.20798014,0.00028718,2]
[378715453,1754989832552,-290.04373457,0.0002891,2]
[378715456,1754989832561,-195.32,0.00029544,2]
[378715458,1754989832570,-164.16,0.00029917,2]
[378715460,1754989832581,-1665.92,0.000301,2]
[378715462,1754989832590,-1293.41,0.00030201,2]
[378715463,1754989832599,-15661.47,0.00030274,2]
[378715465,1754989832608,-639.865,0.00030296,25]
[378715466,1754989832617,-14314.72525578,0.00030326,2]
[378715467,1754989832627,-158.99791019,0.00030951,2]
[378715468,1754989832637,-153.50716065,0.00030951,2]
[378715469,1754989832646,-195.32,0.00031274,2]
[378715470,1754989832656,-151.0,0.00031933,7]
[378715471,1754989832665,-1407.38592852,0.00031933,2]
[378715472,1754989832682,-12907.33932726,0.00031933,2]
[378715473,1754989832692,-156.78,0.00032012,2]
[378715474,1754989832701,-156.78,0.00032035,2]
[378715475,1754989832710,-156.78,0.00032058,2]
[378715476,1754989832721,-156.78,0.00032081,2]
[378715477,1754989832730,-156.78,0.00032104,2]
[378715478,1754989832739,-156.78,0.00032126,2]
[378715479,1754989832748,-156.78,0.00032149,2]
[378715480,1754989832758,-189.32,0.00032152,2]
[378715481,1754989832767,-156.78,0.00032172,2]
[378715482,1754989832933,-156.78,0.00032195,2]
[378715483,1754989832942,-156.78,0.00032218,2]
[378715484,1754989832952,-1000.0,0.00032223,2]
[378715485,1754989832961,-156.78,0.00032241,2]
[378715486,1754989832970,-156.78,0.00032264,2]
[378715487,1754989832979,-156.78,0.00032287,2]
[378715488,1754989832988,-156.78,0.00032309,2]
[378715489,1754989832997,-156.78,0.00032332,2]
[378715490,1754989833008,-150.0,0.00032541,2]
[378715491,1754989833018,-151.0,0.0003258,7]
[378715492,1754989833027,-151.0,0.0003258,7]
[378715493,1754989833036,-151.0,0.0003258,7]
[378715494,1754989833046,-151.0,0.0003258,7]
[378715495,1754989833055,-151.0,0.0003258,7]
[378715496,1754989833064,-151.0,0.0003258,7]
[378715497,1754989833073,-151.0,0.0003258,7]
[378715498,1754989833082,-169.323054,0.0003258,7]
[378715499,1754989833092,-204.49,0.00032793,2]
[378715500,1754989833101,-150.0,0.00032876,36]
[378715501,1754989833110,-195.32,0.00033005,2]
[378715502,1754989833120,-170.0,0.00033087,7]
[378715503,1754989833130,-1048.86,0.00033142,120]
[378715504,1754989833140,-151.552124,0.00033142,7]
[378715505,1754989833150,-172.703071,0.00033142,7]
[378715506,1754989833159,-151.0,0.00033142,7]
[378715507,1754989833168,-151.0,0.00033142,7]
[378715508,1754989833177,-151.0,0.00033142,7]
[378715509,1754989833187,-5000.0,0.00033155,2]
[378715510,1754989833196,-14314.72525578,0.00033541,2]
[378715511,1754989833206,-250.0,0.00033642,2]
[378715512,1754989833217,-666.0,0.00033642,3]
[378715513,1754989833226,-165.48,0.00034039,2]
[378715514,1754989833235,-150.54,0.00034045,120]
[378715515,1754989833244,-152.8,0.00034263,2]
[378715516,1754989833256,-322.49,0.0003428,30]
[378715517,1754989833265,-181.31,0.00034354,2]
[378715518,1754989833275,-151.0,0.00034576,7]
[378715519,1754989833284,-158.144447,0.00034576,7]
[378715520,1754989833293,-158.144447,0.00034576,7]
[378715521,1754989833303,-240.756972,0.00034576,7]
[378715522,1754989833313,-240.756972,0.00034576,7]
[378715523,1754989833323,-152.8,0.00034605,2]
[378715524,1754989833332,-195.32,0.00034735,2]
[378715525,1754989833342,-14314.72525578,0.00035149,2]
[378715526,1754989833352,-151.0,0.00035149,7]
[378715527,1754989833361,-151.0,0.00035149,7]
[378715528,1754989833370,-189.990386,0.00035149,7]
[378715529,1754989833380,-151.0,0.00035149,7]
[378715530,1754989833389,-151.0,0.00035149,7]
[378715531,1754989833398,-151.0,0.00035149,7]
[378715532,1754989833408,-152.879255,0.00035149,7]
[378715533,1754989833418,-181.31,0.00036072,2]
[378715534,1754989833428,-1000.0,0.00036251,2]
[378715535,1754989833437,-195.32,0.00036465,2]
[378715536,1754989833447,-152.508696,0.00036678,7]
[378715537,1754989833456,-151.566368,0.00036678,7]
[378715538,1754989833466,-151.0,0.00036678,7]
[378715539,1754989833475,-295.425146,0.00036678,7]
[378715540,1754989833486,-151.0,0.00036678,7]
[378715541,1754989833495,-151.0,0.00036678,7]
[378715542,1754989833505,-268.21866896,0.00036678,7]
[378715543,1754989833516,-151.0,0.00036678,7]
[378715544,1754989833526,-151.0,0.00036678,7]
[378715545,1754989833535,-151.0,0.00036678,7]
[378715546,1754989833545,-151.0,0.00036678,7]
[378715547,1754989833555,-191.551052,0.00036678,7]
[378715548,1754989833565,-151.0,0.00036678,7]
[378715549,1754989833575,-14314.72525578,0.00036756,2]
[378715550,1754989833584,-189.32,0.00036974,2]
[378715551,1754989833594,-321.50205197,0.00037501,2]
[378715552,1754989833603,-181.31,0.0003779,2]
[378715553,1754989833612,-1000.0,0.000378,7]
[378715554,1754989833623,-152.172678,0.000378,7]
[378715555,1754989833633,-151.0,0.000378,7]
[378715556,1754989833642,-151.0,0.000378,7]
[378715557,1754989833652,-6104.719,0.00037903,2]
[378715558,1754989833662,-4146.0,0.00037903,2]
[378715559,1754989833671,-21466.0,0.00037903,2]
[378715560,1754989833685,-150.0,0.00038027,2]
[378715561,1754989833694,-195.32,0.00038196,2]
[378715562,1754989833704,-150.0,0.00038287,2]
[378715563,1754989833713,-14314.72525578,0.00038364,2]
[378715564,1754989833723,-151.0,0.00038364,30]
[378715565,1754989833732,-151.0,0.00038364,30]
[378715566,1754989833741,-151.0,0.00038364,30]
[378715567,1754989833752,-151.0,0.00038364,30]
[378715568,1754989833762,-150.0,0.00038445,2]
[378715569,1754989833771,-1000.0,0.000386,7]
[378715570,1754989833780,-1000.0,0.000386,7]
[378715571,1754989833790,-150.0,0.00038683,2]
[378715572,1754989833800,-275.2,0.000387,2]
[378715573,1754989833810,-150.0,0.00038731,2]
[378715574,1754989833820,-150.0,0.00038744,2]
[378715575,1754989833829,-150.0,0.00038753,2]
[378715576,1754989833839,-150.0,0.00038822,2]
[378715577,1754989833848,-150.0,0.000389,2]
[378715578,1754989833857,-1000.0,0.00039,7]
[378715579,1754989833867,-150.0,0.00039036,2]
[378715580,1754989833876,-150.0,0.0003904,2]
[378715581,1754989833885,-150.0,0.00039064,2]
[378715582,1754989833895,-150.0,0.00039066,2]
[378715583,1754989833905,-152.729581,0.0003913,30]
[378715584,1754989833915,-151.0,0.0003913,30]
[378715585,1754989833925,-158.144447,0.0003913,30]
[378715586,1754989833935,-158.144447,0.0003913,30]
[378715587,1754989833946,-240.756972,0.0003913,30]
[378715588,1754989833955,-240.756972,0.0003913,30]
[378715589,1754989833964,-5869.60792537,0.0003913,2]
[378715590,1754989833974,-162.27388246,0.0003913,15]
[378715591,1754989833983,-150.0,0.0003921,2]
[378715592,1754989833993,-151.0,0.0003922,30]
[378715593,1754989834002,-157.962632,0.0003922,30]
[378715594,1754989834012,-664.795109,0.0003922,30]
[378715595,1754989834021,-151.350376,0.0003922,30]
[378715596,1754989834030,-151.0,0.0003922,30]
[378715597,1754989834040,-151.0,0.0003922,30]
[378715598,1754989834049,-151.0,0.0003922,30]
[378715599,1754989834058,-152.817249,0.0003922,30]
[378715600,1754989834068,-500.0,0.0003922,120]
[378715601,1754989834077,-152.471953,0.0003922,30]
[378715602,1754989834086,-151.0,0.0003922,30]
[378715603,1754989834095,-153.349189,0.0003922,30]
[378715604,1754989834105,-151.0,0.0003922,30]
[378715605,1754989834115,-151.0,0.0003922,30]
[378715606,1754989834125,-151.0,0.0003922,30]
[378715607,1754989834134,-151.0,0.0003922,30]
[378715608,1754989834143,-151.0,0.0003922,30]
[378715609,1754989834152,-151.0,0.0003922,30]
[378715610,1754989834161,-151.0,0.0003922,30]
[378715611,1754989834171,-247.385547,0.0003922,30]
[378715612,1754989834179,-151.0,0.0003922,30]
[378715613,1754989834189,-151.0,0.0003922,30]
[378715614,1754989834198,-63249.7854665,0.0003922,3]
[378715615,1754989834208,-300.0,0.00039229,10]
[378715616,1754989834218,-105178.45001113,0.0003923,2]
[378715617,1754989834227,-158.144447,0.0003923,30]
[378715618,1754989834236,-158.144447,0.0003923,30]
[378715619,1754989834245,-240.756972,0.0003923,30]
[378715620,1754989834255,-240.756972,0.0003923,30]
[378715621,1754989834264,-180.940077,0.0003923,30]
[378715622,1754989834273,-664.795109,0.0003923,30]
[378715623,1754989834283,-151.0,0.0003923,30]
[378715624,1754989834292,-151.0,0.0003923,30]
[378715625,1754989834301,-152.807329,0.0003923,30]
[378715626,1754989834310,-151.0,0.0003923,30]
[378715627,1754989834324,-151.0,0.0003923,30]
[378715628,1754989834333,-151.0,0.0003923,30]
[378715629,1754989834342,-161.093644,0.0003923,30]
[378715630,1754989834351,-231.846672,0.0003923,30]
[378715631,1754989834360,-154.570071,0.0003923,30]
[378715632,1754989834369,-151.0,0.0003923,30]
[378715633,1754989834378,-151.0,0.0003923,30]
[378715634,1754989834387,-180.639181,0.00039299,30]
[378715635,1754989834397,-151.0,0.00039299,30]
[378715636,1754989834406,-500.0,0.00039356,120]
[378715637,1754989834415,-150.0,0.00039382,2]
[378715638,1754989834424,-221.30180983,0.00039493,120]
[378715639,1754989834433,-181.31,0.00039508,2]
[378715640,1754989834442,-361.58,0.00039529,2]
[378715641,1754989834451,-5869.60792529,0.00039581,2]
[378715642,1754989834460,-150.0,0.00039582,2]
[378715643,1754989834470,-1073.6304473,0.00039634,2]
[378715644,1754989834479,-150.0,0.00039677,2]
[378715645,1754989834489,-237.6297259,0.00039726,15]
[378715646,1754989834498,-198.96710618,0.00039726,15]
[378715647,1754989834507,-195.32,0.00039926,2]
[378715648,1754989834517,-14314.72525578,0.00039972,15]
[378715649,1754989834526,-151.0,0.0003999,30]
[378715650,1754989834535,-151.0,0.0003999,30]
[378715651,1754989834544,-151.0,0.0003999,30]
[378715652,1754989834553,-151.0,0.0003999,30]
[378715653,1754989834563,-31624.8927332,0.0003999,3]
[378715654,1754989834572,-255.006276,0.0003999,30]
[378715655,1754989834582,-16936.24,0.0004,30]
[378715656,1754989834591,-870.68067418,0.0004,5]
[378715657,1754989834601,-151.363716,0.0004,30]
[378715658,1754989834610,-209.0,0.0004,120]
[378715659,1754989834619,-664.795109,0.0004,30]
[378715660,1754989834629,-151.0,0.0004,30]
[378715661,1754989834638,-322.69,0.0004,30]
[378715662,1754989834647,-151.86518538,0.00040001,2]
[378715663,1754989834656,-5869.60792529,0.00040032,15]
[378715664,1754989834665,-150.0,0.00040053,2]
[378715665,1754989834679,-150.0,0.00040085,2]
[378715666,1754989834688,-5000.0,0.00040137,2]
[378715667,1754989834698,-150.0,0.00040178,2]
[378715668,1754989834707,-1000.0,0.000402,7]
[378715669,1754989834718,-150.0,0.00040201,2]
[378715670,1754989834728,-164.46,0.00040214,2]
[378715671,1754989834737,-158.144447,0.00040228,30]
[378715672,1754989834747,-158.144447,0.00040228,30]
[378715673,1754989834757,-240.756972,0.00040228,30]
[378715674,1754989834767,-240.756972,0.00040228,30]
[378715675,1754989834777,-150.0,0.00040228,2]
[378715676,1754989834787,-151.0,0.00040228,30]
[378715677,1754989834796,-151.0,0.00040228,30]
[378715678,1754989834806,-151.0,0.00040228,30]
[378715679,1754989834815,-664.795109,0.00040237,30]
[378715680,1754989834825,-229.400712,0.00040237,30]
[378715681,1754989834835,-401.0,0.00040238,5]
[378715682,1754989834844,-150.0,0.00040244,2]
[378715683,1754989834853,-1000.0,0.00040257,7]
[378715684,1754989834864,-151.0,0.00040257,30]
[378715685,1754989834874,-1000.0,0.00040278,2]
[378715686,1754989834883,-1000.0,0.00040304,7]
[378715687,1754989834893,-31624.8927332,0.00040327,3]
[378715688,1754989834902,-150.0,0.00040337,2]
[378715689,1754989834914,-150.0,0.00040337,2]
[378715690,1754989834923,-150.0,0.00040337,2]
[378715691,1754989834933,-205.24,0.00040337,2]
[378715692,1754989834942,-810.0,0.00040337,2]
[378715693,1754989834952,-1253.0,0.00040337,2]
[378715694,1754989834961,-893.0,0.00040337,2]
[378715695,1754989834970,-1171.0,0.00040337,2]
[378715696,1754989834979,-664.795109,0.00040337,30]
[378715697,1754989834988,-179.950806,0.00040337,30]
[378715698,1754989834997,-151.0,0.00040337,30]
[378715699,1754989835007,-151.0,0.00040337,30]
[378715700,1754989835016,-151.0,0.00040337,30]
[378715701,1754989835026,-151.0,0.00040337,30]
[378715702,1754989835035,-150.0,0.00040372,2]
[378715703,1754989835044,-150.0,0.00040404,2]
[378715704,1754989835053,-150.0,0.00040417,2]
[378715705,1754989835062,-150.0,0.00040436,2]
[378715706,1754989835072,-164.19,0.00040475,14]
[378715707,1754989835081,-5869.60792529,0.00040482,15]
[378715708,1754989835091,-158.144447,0.000405,30]
[378715709,1754989835100,-158.144447,0.000405,30]
[378715710,1754989835109,-240.756972,0.000405,30]
[378715711,1754989835119,-240.756972,0.000405,30]
[378715712,1754989835128,-151.0,0.000405,30]
[378715713,1754989835138,-272.825022,0.000405,30]
[378715714,1754989835147,-151.0,0.000405,30]
[378715715,1754989835156,-151.0,0.000405,30]
[378715716,1754989835165,-12816.63636997,0.000405,120]
[378715717,1754989835175,-322.49,0.00040504,120]
[378715718,1754989835183,-150.0,0.00040574,2]
[378715719,1754989835192,-1000.0,0.000406,7]
[378715720,1754989835202,-500.0,0.000406,14]
[378715721,1754989835211,-664.795109,0.00040635,30]
[378715722,1754989835221,-368.9,0.00040643,14]
[378715723,1754989835230,-211.77135896,0.00040682,2]
[378715724,1754989835239,-150.0,0.00040695,2]
[378715725,1754989835249,-1000.0,0.000407,14]
[378715726,1754989835258,-150.0,0.00040723,2]
[378715727,1754989835267,-150.0,0.00040764,2]
[378715728,1754989835279,-150.0,0.00040768,2]
[378715729,1754989835411,-162.27388246,0.00040789,15]
[378715730,1754989835421,-1600.0,0.000408,14]
[378715731,1754989835430,-1000.0,0.00040821,120]
[378715732,1754989835439,-1000.0,0.00040821,120]
[378715733,1754989835449,-10.51487804,0.00040821,120]
[378715734,1754989835464,-768.81310518,0.00040821,120]
[378715735,1754989835474,-220.67201678,0.00040821,120]
[378715736,1754989835484,-267.19857914,0.00040821,120]
[378715737,1754989835512,-533.28142086,0.00040821,120]
[378715738,1754989835521,-150.0,0.00040837,2]
[378715739,1754989835531,-161.4019098,0.00040898,2]
[378715740,1754989835540,-286.356097,0.000409,30]
[378715741,1754989835552,-454.34247518,0.000409,14]
[378715742,1754989835563,-1645.65752482,0.000409,14]
[378715743,1754989835573,-713.01956683,0.00040903,2]
[378715752,1754989837963,-427.719999,0.00038864,3]
[378715753,1754989838069,-432.95504634,0.00038864,3]
[378715754,1754989838123,-27.32495466,0.00038864,3]
[378715755,1754989838134,-638.67504534,0.00040701,3]
[378715913,1754989839954,-587.29867511,0.00039364,3]
[378715919,1754989840009,-300.70132489,0.00039364,3]
[378715921,1754989840018,-249.32495466,0.00040701,3]
[378715923,1754989840027,-3432.98043317,0.00040903,2]
[378715925,1754989840037,-13193.384,0.00040903,2]
[378715927,1754989840046,-5869.60792529,0.00040933,15]
[378715929,1754989840055,-31624.8927332,0.00040946,3]